[Event "Titled Tuesday Blitz May 10 Late 2022"]
[White "Vovk, Orest"]
[Black "Leiva, Gianmarco"]
[WhiteFideId "14113490"]
[BlackFideId "3804399"]
[WhiteElo "2203"]
[BlackElo "2323"]
[Result "0-1"]
[Round "11"]
[TimeControl "180+1"]
[Date "2022.05.10"]
[WhiteClock "0:01:34"]
[BlackClock "0:00:34"]

1. h4 {[%clk 0:02:55]}  e5 {[%clk 0:02:58]} 2. h5 {[%clk 0:02:55]}  d5 {[%clk 0:02:58]} 3. h6 {[%clk 0:02:55]}  Nxh6 {[%clk 0:02:58]} 4. d4 {[%clk 0:02:56]}  Nc6 {[%clk 0:02:55]} 5. Bxh6 {[%clk 0:02:56]}  gxh6 {[%clk 0:02:55]} 6. dxe5 {[%clk 0:02:57]}  Nxe5 {[%clk 0:02:55]} 7. Nf3 {[%clk 0:02:57]}  Bg7 {[%clk 0:02:53]} 8. Nxe5 {[%clk 0:02:56]}  Bxe5 {[%clk 0:02:54]} 9. Nc3 {[%clk 0:02:54]}  Bxc3+ {[%clk 0:02:50]} 10. bxc3 {[%clk 0:02:55]}  Qf6 {[%clk 0:02:51]} 11. Qd4 {[%clk 0:02:55]}  Qxd4 {[%clk 0:02:41]} 12. cxd4 {[%clk 0:02:56]}  Bf5 {[%clk 0:02:41]} 13. Kd2 {[%clk 0:02:55]}  c5 {[%clk 0:02:33]} 14. e3 {[%clk 0:02:43]}  Rc8 {[%clk 0:02:27]} 15. Bd3 {[%clk 0:02:38]}  Bxd3 {[%clk 0:02:25]} 16. Kxd3 {[%clk 0:02:38]}  c4+ {[%clk 0:02:25]} 17. Ke2 {[%clk 0:02:35]}  Rc6 {[%clk 0:02:22]} 18. Rh5 {[%clk 0:02:35]}  Rd6 {[%clk 0:02:22]} 19. Rb1 {[%clk 0:02:32]}  b6 {[%clk 0:02:22]} 20. Rbh1 {[%clk 0:02:30]}  O-O {[%clk 0:02:19]} 21. Rxh6 {[%clk 0:02:30]}  Rg6 {[%clk 0:02:16]} 22. g3 {[%clk 0:02:27]}  Rxh6 {[%clk 0:02:11]} 23. Rxh6 {[%clk 0:02:26]}  f6 {[%clk 0:02:11]} 24. Rh5 {[%clk 0:02:22]}  Rd8 {[%clk 0:02:11]} 25. a4 {[%clk 0:02:19]}  Kg7 {[%clk 0:02:10]} 26. c3 {[%clk 0:02:18]}  Kg6 {[%clk 0:02:10]} 27. Rh1 {[%clk 0:02:18]}  h5 {[%clk 0:02:07]} 28. Rb1 {[%clk 0:02:14]}  Kf5 {[%clk 0:01:58]} 29. Kf3 {[%clk 0:02:14]}  Rd6 {[%clk 0:01:39]} 30. Rb5 {[%clk 0:02:14]}  a6 {[%clk 0:01:28]} 31. e4+ {[%clk 0:02:09]}  Ke6 {[%clk 0:01:28]} 32. exd5+ {[%clk 0:02:09]}  Kd7 {[%clk 0:01:28]} 33. Rb1 {[%clk 0:02:08]}  Kc7 {[%clk 0:01:26]} 34. Ke4 {[%clk 0:02:08]}  Rd8 {[%clk 0:01:26]} 35. Rh1 {[%clk 0:02:08]}  Re8+ {[%clk 0:01:23]} 36. Kf5 {[%clk 0:02:05]}  Re2 {[%clk 0:01:22]} 37. f4 {[%clk 0:02:03]}  Re3 {[%clk 0:01:19]} 38. Rxh5 {[%clk 0:02:01]}  Rxg3 {[%clk 0:01:18]} 39. Kxf6 {[%clk 0:02:01]}  Kd6 {[%clk 0:01:17]} 40. Kf5 {[%clk 0:01:55]}  Kxd5 {[%clk 0:01:15]} 41. Rh6 {[%clk 0:01:55]}  Rxc3 {[%clk 0:01:12]} 42. Rxb6 {[%clk 0:01:55]}  Rb3 {[%clk 0:01:03]} 43. Rxa6 {[%clk 0:01:53]}  c3 {[%clk 0:01:04]} 44. Ra8 {[%clk 0:01:52]}  Kxd4 {[%clk 0:01:03]} 45. Rc8 {[%clk 0:01:49]}  Rb4 {[%clk 0:01:03]} 46. Kg6 {[%clk 0:01:38]}  Rc4 {[%clk 0:00:53]} 47. Rd8+ {[%clk 0:01:38]}  Ke4 {[%clk 0:00:50]} 48. Rd1 {[%clk 0:01:36]}  Kxf4 {[%clk 0:00:42]} 49. a5 {[%clk 0:01:36]}  c2 {[%clk 0:00:35]} 50. Rc1 {[%clk 0:01:36]}  Ke3 {[%clk 0:00:35]} 51. a6 {[%clk 0:01:34]}  Kd2 {[%clk 0:00:34]} 0-1


[Site "https://www.chess.com"]

[Event "Titled Tuesday Blitz May 10 Late 2022"]
[White "Wartiovaara, Oliver"]
[Black "Pinheiro, Iung Alicio de O."]
[WhiteFideId "513024"]
[BlackFideId "2104350"]
[WhiteElo "1971"]
[BlackElo "2283"]
[Result "1-0"]
[Round "11"]
[TimeControl "180+1"]
[Date "2022.05.11"]
[WhiteClock "0:00:10"]
[BlackClock "0:00:03"]

1. d4 {[%clk 0:03:00]}  c5 {[%clk 0:02:57]} 2. d5 {[%clk 0:03:00]}  e5 {[%clk 0:02:57]} 3. c4 {[%clk 0:03:00]}  d6 {[%clk 0:02:57]} 4. Nc3 {[%clk 0:03:00]}  Be7 {[%clk 0:02:57]} 5. Nf3 {[%clk 0:02:59]}  Bg4 {[%clk 0:02:56]} 6. Nd2 {[%clk 0:02:59]}  Bg5 {[%clk 0:02:54]} 7. Qb3 {[%clk 0:02:52]}  Bc8 {[%clk 0:02:48]} 8. e4 {[%clk 0:02:50]}  Nf6 {[%clk 0:02:44]} 9. Be2 {[%clk 0:02:47]}  O-O {[%clk 0:02:41]} 10. h4 {[%clk 0:02:37]}  Bh6 {[%clk 0:02:39]} 11. g3 {[%clk 0:02:34]}  Ng4 {[%clk 0:02:12]} 12. Qc2 {[%clk 0:02:21]}  Na6 {[%clk 0:02:11]} 13. a3 {[%clk 0:02:20]}  f5 {[%clk 0:01:59]} 14. exf5 {[%clk 0:02:16]}  Bxf5 {[%clk 0:01:57]} 15. Nde4 {[%clk 0:02:14]}  Nxf2 {[%clk 0:01:50]} 16. O-O {[%clk 0:02:02]}  Bxc1 {[%clk 0:01:41]} 17. Raxc1 {[%clk 0:01:58]}  Nxe4 {[%clk 0:01:13]} 18. Nxe4 {[%clk 0:01:46]}  Nc7 {[%clk 0:00:57]} 19. Rxf5 {[%clk 0:01:40]}  Rxf5 {[%clk 0:00:55]} 20. Nxd6 {[%clk 0:01:38]}  Rf8 {[%clk 0:00:42]} 21. Ne4 {[%clk 0:01:36]}  b6 {[%clk 0:00:32]} 22. b4 {[%clk 0:01:33]}  Ne8 {[%clk 0:00:29]} 23. Ng5 {[%clk 0:01:31]}  Nf6 {[%clk 0:00:27]} 24. Ne6 {[%clk 0:01:30]}  Qd6 {[%clk 0:00:28]} 25. bxc5 {[%clk 0:01:28]}  bxc5 {[%clk 0:00:27]} 26. Nxf8 {[%clk 0:01:28]}  e4 {[%clk 0:00:26]} 27. Qc3 {[%clk 0:01:14]}  Rxf8 {[%clk 0:00:24]} 28. Kg2 {[%clk 0:01:10]}  Nd7 {[%clk 0:00:20]} 29. Qe3 {[%clk 0:01:08]}  Nf6 {[%clk 0:00:20]} 30. Rf1 {[%clk 0:01:06]}  h6 {[%clk 0:00:20]} 31. g4 {[%clk 0:01:03]}  Qe5 {[%clk 0:00:19]} 32. g5 {[%clk 0:00:57]}  hxg5 {[%clk 0:00:19]} 33. hxg5 {[%clk 0:00:56]}  Nd7 {[%clk 0:00:20]} 34. Qg3 {[%clk 0:00:52]}  Qb2 {[%clk 0:00:17]} 35. Rxf8+ {[%clk 0:00:47]}  Nxf8 {[%clk 0:00:18]} 36. Qe3 {[%clk 0:00:40]}  Qc2 {[%clk 0:00:17]} 37. Kg3 {[%clk 0:00:38]}  Nd7 {[%clk 0:00:17]} 38. Kf4 {[%clk 0:00:34]}  Nf8 {[%clk 0:00:15]} 39. Qxe4 {[%clk 0:00:32]}  Qc1+ {[%clk 0:00:14]} 40. Qe3 {[%clk 0:00:31]}  Ng6+ {[%clk 0:00:12]} 41. Kf3 {[%clk 0:00:22]}  Qh1+ {[%clk 0:00:12]} 42. Kf2 {[%clk 0:00:20]}  Qh2+ {[%clk 0:00:09]} 43. Ke1 {[%clk 0:00:20]}  Nf4 {[%clk 0:00:09]} 44. Kd2 {[%clk 0:00:16]}  Ng2 {[%clk 0:00:06]} 45. Qe8+ {[%clk 0:00:16]}  Kh7 {[%clk 0:00:07]} 46. Bd3+ {[%clk 0:00:16]}  g6 {[%clk 0:00:03]} 47. Bxg6+ {[%clk 0:00:09]}  Kg7 {[%clk 0:00:02]} 48. Qf7+ {[%clk 0:00:09]}  Kh8 {[%clk 0:00:03]} 49. Qf8# {[%clk 0:00:10]} 1-0


[Site "https://www.chess.com"]

[Event "Titled Tuesday Blitz May 10 Late 2022"]
[White "Yuan, Qingyu"]
[Black "Melikyan, Gnel"]
[WhiteFideId "8609772"]
[BlackFideId "54109990"]
[WhiteElo "2359"]
[BlackElo "1772"]
[Result "1-0"]
[Round "11"]
[TimeControl "180+1"]
[Date "2022.05.10"]
[WhiteClock "0:00:04"]
[BlackClock "0:00:16"]

1. e4 {[%clk 0:03:00]}  c5 {[%clk 0:02:57]} 2. Nf3 {[%clk 0:03:00]}  Nc6 {[%clk 0:02:55]} 3. Bc4 {[%clk 0:03:00]}  g6 {[%clk 0:02:54]} 4. O-O {[%clk 0:02:54]}  Bg7 {[%clk 0:02:54]} 5. c3 {[%clk 0:02:55]}  d6 {[%clk 0:02:41]} 6. d4 {[%clk 0:02:53]}  cxd4 {[%clk 0:02:41]} 7. cxd4 {[%clk 0:02:54]}  Bg4 {[%clk 0:02:40]} 8. Bxf7+ {[%clk 0:02:52]}  Kf8 {[%clk 0:02:37]} 9. Bxg8 {[%clk 0:02:16]}  Rxg8 {[%clk 0:02:35]} 10. h3 {[%clk 0:02:08]}  Bxf3 {[%clk 0:02:35]} 11. Qxf3+ {[%clk 0:02:08]}  Ke8 {[%clk 0:02:35]} 12. Qb3 {[%clk 0:01:49]}  Rf8 {[%clk 0:02:20]} 13. Qxb7 {[%clk 0:01:41]}  Nxd4 {[%clk 0:02:18]} 14. Nc3 {[%clk 0:01:36]}  Qc8 {[%clk 0:02:09]} 15. Qd5 {[%clk 0:01:22]}  Qc6 {[%clk 0:02:04]} 16. Qa5 {[%clk 0:01:10]}  Kf7 {[%clk 0:01:50]} 17. Be3 {[%clk 0:01:04]}  Nc2 {[%clk 0:01:41]} 18. Rac1 {[%clk 0:01:04]}  Bxc3 {[%clk 0:01:39]} 19. Rxc2 {[%clk 0:00:52]}  Bxa5 {[%clk 0:01:39]} 20. Rxc6 {[%clk 0:00:53]}  Ke6 {[%clk 0:01:34]} 21. Rfc1 {[%clk 0:00:47]}  Rfb8 {[%clk 0:01:24]} 22. b3 {[%clk 0:00:47]}  Bb6 {[%clk 0:01:24]} 23. Bd2 {[%clk 0:00:40]}  Rf8 {[%clk 0:01:23]} 24. Be1 {[%clk 0:00:37]}  Rf4 {[%clk 0:01:15]} 25. R6c4 {[%clk 0:00:36]}  Raf8 {[%clk 0:01:13]} 26. R1c2 {[%clk 0:00:37]}  g5 {[%clk 0:01:09]} 27. Kf1 {[%clk 0:00:33]}  h5 {[%clk 0:01:08]} 28. f3 {[%clk 0:00:26]}  g4 {[%clk 0:01:06]} 29. Bg3 {[%clk 0:00:17]}  R4f7 {[%clk 0:01:01]} 30. f4 {[%clk 0:00:17]}  Rxf4+ {[%clk 0:00:53]} 31. Bxf4 {[%clk 0:00:17]}  Rxf4+ {[%clk 0:00:54]} 32. Ke1 {[%clk 0:00:18]}  gxh3 {[%clk 0:00:47]} 33. gxh3 {[%clk 0:00:18]}  Rf3 {[%clk 0:00:48]} 34. Rh2 {[%clk 0:00:17]}  Ke5 {[%clk 0:00:40]} 35. Ke2 {[%clk 0:00:17]}  Rg3 {[%clk 0:00:37]} 36. Kd2 {[%clk 0:00:10]}  Bd4 {[%clk 0:00:37]} 37. Ra4 {[%clk 0:00:06]}  Kxe4 {[%clk 0:00:29]} 38. Re2+ {[%clk 0:00:06]}  Kd5 {[%clk 0:00:27]} 39. Rxe7 {[%clk 0:00:04]}  Rxh3 {[%clk 0:00:26]} 40. Re2 {[%clk 0:00:03]}  h4 {[%clk 0:00:23]} 41. Kc2 {[%clk 0:00:03]}  Rc3+ {[%clk 0:00:22]} 42. Kd1 {[%clk 0:00:04]}  h3 {[%clk 0:00:22]} 43. Rd2 {[%clk 0:00:03]}  h2 {[%clk 0:00:16]} 44. Raxd4+ {[%clk 0:00:03]}  Ke5 {[%clk 0:00:16]} 45. Rh4 {[%clk 0:00:04]} 1-0


[Site "https://www.chess.com"]

[Event "Titled Tuesday Blitz May 10 Late 2022"]
[White "Zhou, Qiyu"]
[Black "Khripachenko, Alexander"]
[WhiteFideId "505161"]
[BlackFideId "54184975"]
[WhiteElo "1925"]
[BlackElo "2138"]
[Result "1-0"]
[Round "11"]
[TimeControl "180+1"]
[Date "2022.05.10"]
[WhiteClock "0:00:05"]
[BlackClock "0:01:23"]

1. e4 {[%clk 0:03:00]}  c6 {[%clk 0:03:00]} 2. d4 {[%clk 0:03:00]}  d5 {[%clk 0:03:00]} 3. e5 {[%clk 0:03:01]}  Bf5 {[%clk 0:03:00]} 4. h4 {[%clk 0:03:01]}  h5 {[%clk 0:03:00]} 5. Bd3 {[%clk 0:03:00]}  Bxd3 {[%clk 0:02:59]} 6. Qxd3 {[%clk 0:03:01]}  Qa5+ {[%clk 0:03:00]} 7. Nd2 {[%clk 0:02:58]}  e6 {[%clk 0:03:00]} 8. Ne2 {[%clk 0:02:34]}  Ne7 {[%clk 0:03:00]} 9. Ng3 {[%clk 0:02:32]}  g6 {[%clk 0:03:00]} 10. O-O {[%clk 0:02:32]}  Qa6 {[%clk 0:03:00]} 11. c4 {[%clk 0:02:32]}  Nf5 {[%clk 0:03:00]} 12. Nxf5 {[%clk 0:02:31]}  gxf5 {[%clk 0:03:00]} 13. b3 {[%clk 0:02:30]}  Nd7 {[%clk 0:02:59]} 14. Nf3 {[%clk 0:02:25]}  Be7 {[%clk 0:02:38]} 15. Bf4 {[%clk 0:02:16]}  O-O-O {[%clk 0:02:36]} 16. Rfc1 {[%clk 0:02:13]}  Kb8 {[%clk 0:02:36]} 17. Rc2 {[%clk 0:02:09]}  dxc4 {[%clk 0:02:35]} 18. bxc4 {[%clk 0:02:09]}  Nc5 {[%clk 0:02:34]} 19. Qc3 {[%clk 0:02:00]}  Ne4 {[%clk 0:02:34]} 20. Qb3 {[%clk 0:01:58]}  Rhg8 {[%clk 0:02:34]} 21. g3 {[%clk 0:01:42]}  Rg4 {[%clk 0:02:32]} 22. Kh2 {[%clk 0:01:42]}  Qa3 {[%clk 0:02:23]} 23. Rb1 {[%clk 0:01:37]}  Qxb3 {[%clk 0:02:23]} 24. axb3 {[%clk 0:01:32]}  c5 {[%clk 0:02:24]} 25. d5 {[%clk 0:01:30]}  exd5 {[%clk 0:02:19]} 26. e6+ {[%clk 0:01:30]}  Kc8 {[%clk 0:02:06]} 27. cxd5 {[%clk 0:01:27]}  fxe6 {[%clk 0:02:00]} 28. dxe6 {[%clk 0:01:28]}  Rg6 {[%clk 0:02:01]} 29. b4 {[%clk 0:01:22]}  b6 {[%clk 0:02:01]} 30. bxc5 {[%clk 0:01:22]}  Bxc5 {[%clk 0:02:02]} 31. Ra1 {[%clk 0:01:05]}  Kb7 {[%clk 0:01:56]} 32. e7 {[%clk 0:00:50]}  Re8 {[%clk 0:01:54]} 33. Rca2 {[%clk 0:00:31]}  a5 {[%clk 0:01:53]} 34. Rb1 {[%clk 0:00:30]}  Kc6 {[%clk 0:01:52]} 35. Ne5+ {[%clk 0:00:27]}  Kd5 {[%clk 0:01:52]} 36. Nxg6 {[%clk 0:00:28]}  Ke6 {[%clk 0:01:52]} 37. Re1 {[%clk 0:00:21]}  Kf6 {[%clk 0:01:52]} 38. Ne5 {[%clk 0:00:19]}  Nxf2 {[%clk 0:01:52]} 39. Bg5+ {[%clk 0:00:17]}  Kg7 {[%clk 0:01:52]} 40. Nc6 {[%clk 0:00:13]}  Ne4 {[%clk 0:01:50]} 41. Rae2 {[%clk 0:00:11]}  a4 {[%clk 0:01:48]} 42. Ne5 {[%clk 0:00:10]}  a3 {[%clk 0:01:47]} 43. Nc4 {[%clk 0:00:09]}  b5 {[%clk 0:01:47]} 44. Nd2 {[%clk 0:00:08]}  Bb4 {[%clk 0:01:36]} 45. Rb1 {[%clk 0:00:02]}  Nc3 {[%clk 0:01:34]} 46. Rxb4 {[%clk 0:00:01]}  Nxe2 {[%clk 0:01:35]} 47. Rxb5 {[%clk 0:00:02]}  Nc3 {[%clk 0:01:28]} 48. Ra5 {[%clk 0:00:02]}  a2 {[%clk 0:01:28]} 49. Ra6 {[%clk 0:00:02]}  Rb8 {[%clk 0:01:26]} 50. Bf6+ {[%clk 0:00:02]}  Kf7 {[%clk 0:01:26]} 51. Bxc3 {[%clk 0:00:03]}  Rc8 {[%clk 0:01:26]} 52. Bd4 {[%clk 0:00:02]}  Rc2 {[%clk 0:01:27]} 53. Be3 {[%clk 0:00:02]}  Rb2 {[%clk 0:01:27]} 54. Kg2 {[%clk 0:00:02]}  f4 {[%clk 0:01:28]} 55. gxf4 {[%clk 0:00:02]}  Kxe7 {[%clk 0:01:29]} 56. Kf3 {[%clk 0:00:03]}  Kf7 {[%clk 0:01:28]} 57. Nc4 {[%clk 0:00:03]}  Rh2 {[%clk 0:01:27]} 58. Ne5+ {[%clk 0:00:04]}  Ke7 {[%clk 0:01:27]} 59. Bd4 {[%clk 0:00:04]}  Rh3+ {[%clk 0:01:24]} 60. Ke4 {[%clk 0:00:04]}  Rh2 {[%clk 0:01:23]} 61. Kf5 {[%clk 0:00:05]}  Rxh4 {[%clk 0:01:23]} 62. Ng6+ {[%clk 0:00:05]} 1-0